[Event "Titled Tuesday Blitz October 11 Early 2022"]
[White "Schut, Han"]
[Black "Cruz Lledo, Pablo"]
[WhiteFideId "1005561"]
[BlackFideId "2297361"]
[WhiteElo "2024"]
[BlackElo "2304"]
[Result "0-1"]
[Round "03"]
[TimeControl "180+1"]
[Date "2022.10.12"]
[WhiteClock "0:00:08"]
[BlackClock "0:01:02"]

1. e4 {[%clk 0:03:00]}  g6 {[%clk 0:03:00]} 2. d4 {[%clk 0:03:00]}  Bg7 {[%clk 0:03:01]} 3. Nc3 {[%clk 0:03:00]}  d6 {[%clk 0:03:02]} 4. f4 {[%clk 0:03:00]}  h5 {[%clk 0:02:56]} 5. Nf3 {[%clk 0:03:00]}  Nh6 {[%clk 0:02:56]} 6. Bd3 {[%clk 0:02:53]}  Bg4 {[%clk 0:02:55]} 7. Be3 {[%clk 0:02:52]}  Nc6 {[%clk 0:02:53]} 8. d5 {[%clk 0:02:49]}  Nb8 {[%clk 0:02:48]} 9. h3 {[%clk 0:02:40]}  Bxf3 {[%clk 0:02:46]} 10. Qxf3 {[%clk 0:02:41]}  Nd7 {[%clk 0:02:46]} 11. O-O {[%clk 0:02:36]}  c6 {[%clk 0:02:45]} 12. Rad1 {[%clk 0:02:13]}  Qc7 {[%clk 0:02:45]} 13. Rfe1 {[%clk 0:02:02]}  a6 {[%clk 0:02:25]} 14. dxc6 {[%clk 0:01:17]}  bxc6 {[%clk 0:02:26]} 15. e5 {[%clk 0:01:12]}  dxe5 {[%clk 0:02:24]} 16. Be4 {[%clk 0:00:50]}  Rc8 {[%clk 0:02:20]} 17. f5 {[%clk 0:00:45]}  Nxf5 {[%clk 0:02:08]} 18. Bxf5 {[%clk 0:00:45]}  gxf5 {[%clk 0:02:08]} 19. Qxf5 {[%clk 0:00:46]}  e6 {[%clk 0:02:09]} 20. Qf3 {[%clk 0:00:29]}  Bh6 {[%clk 0:01:51]} 21. Ne4 {[%clk 0:00:18]}  Bxe3+ {[%clk 0:01:44]} 22. Rxe3 {[%clk 0:00:18]}  f5 {[%clk 0:01:11]} 23. Nd6+ {[%clk 0:00:18]}  Ke7 {[%clk 0:01:11]} 24. Nxc8+ {[%clk 0:00:14]}  Qxc8 {[%clk 0:01:12]} 25. Red3 {[%clk 0:00:14]}  Nf6 {[%clk 0:01:05]} 26. Qf2 {[%clk 0:00:11]}  c5 {[%clk 0:01:02]} 27. Rc3 {[%clk 0:00:10]}  Ne4 {[%clk 0:01:02]} 28. Qd2 {[%clk 0:00:08]}  Nxd2 {[%clk 0:01:02]} 0-1


[Site "https://www.chess.com"]

[Event "Titled Tuesday Blitz October 11 Early 2022"]
[White "Shaik Sumer Arsh"]
[Black "Kamsky, Gata"]
[WhiteFideId "45020000"]
[BlackFideId "2000024"]
[WhiteElo "2190"]
[BlackElo "2666"]
[Result "0-1"]
[Round "03"]
[TimeControl "180+1"]
[Date "2022.10.12"]
[WhiteClock "0:00:04"]
[BlackClock "0:00:14"]

1. d4 {[%clk 0:02:55]}  d6 {[%clk 0:02:58]} 2. c4 {[%clk 0:02:54]}  Nf6 {[%clk 0:02:57]} 3. Nc3 {[%clk 0:02:54]}  g6 {[%clk 0:02:57]} 4. e4 {[%clk 0:02:53]}  Bg7 {[%clk 0:02:56]} 5. Be2 {[%clk 0:02:54]}  e5 {[%clk 0:02:55]} 6. d5 {[%clk 0:02:52]}  a5 {[%clk 0:02:53]} 7. Be3 {[%clk 0:02:52]}  Na6 {[%clk 0:02:50]} 8. Qd2 {[%clk 0:02:41]}  Nc5 {[%clk 0:02:49]} 9. f3 {[%clk 0:02:41]}  h5 {[%clk 0:02:30]} 10. h4 {[%clk 0:02:16]}  Bd7 {[%clk 0:02:13]} 11. Nh3 {[%clk 0:01:52]}  Bxh3 {[%clk 0:02:11]} 12. Rxh3 {[%clk 0:01:51]}  Ng8 {[%clk 0:02:09]} 13. O-O-O {[%clk 0:01:29]}  Bh6 {[%clk 0:02:09]} 14. Bg5 {[%clk 0:01:22]}  f6 {[%clk 0:02:06]} 15. Bxh6 {[%clk 0:01:19]}  Nxh6 {[%clk 0:02:06]} 16. g4 {[%clk 0:01:14]}  Qd7 {[%clk 0:01:44]} 17. Rg3 {[%clk 0:01:05]}  hxg4 {[%clk 0:01:40]} 18. fxg4 {[%clk 0:01:03]}  Nf7 {[%clk 0:01:41]} 19. g5 {[%clk 0:00:55]}  fxg5 {[%clk 0:01:04]} 20. hxg5 {[%clk 0:00:41]}  Qe7 {[%clk 0:01:03]} 21. Rf1 {[%clk 0:00:35]}  O-O-O {[%clk 0:01:01]} 22. Rf6 {[%clk 0:00:28]}  Rdg8 {[%clk 0:00:46]} 23. Qe3 {[%clk 0:00:20]}  Kb8 {[%clk 0:00:44]} 24. Kc2 {[%clk 0:00:19]}  Rh4 {[%clk 0:00:35]} 25. Bg4 {[%clk 0:00:14]}  Rh2+ {[%clk 0:00:30]} 26. Kb1 {[%clk 0:00:08]}  Rh1+ {[%clk 0:00:26]} 27. Kc2 {[%clk 0:00:08]}  Rh2+ {[%clk 0:00:23]} 28. Be2 {[%clk 0:00:08]}  Nd7 {[%clk 0:00:21]} 29. Re6 {[%clk 0:00:07]}  Qf8 {[%clk 0:00:18]} 30. Nb5 {[%clk 0:00:07]}  b6 {[%clk 0:00:18]} 31. a3 {[%clk 0:00:05]}  Nd8 {[%clk 0:00:16]} 32. b4 {[%clk 0:00:03]}  Qf4 {[%clk 0:00:15]} 33. Qc3 {[%clk 0:00:02]}  Rxe2+ {[%clk 0:00:14]} 34. Kb3 {[%clk 0:00:02]}  a4+ {[%clk 0:00:13]} 35. Kxa4 {[%clk 0:00:02]}  Nb7 {[%clk 0:00:13]} 36. Re7 {[%clk 0:00:02]}  Ndc5+ {[%clk 0:00:13]} 37. bxc5 {[%clk 0:00:03]}  Nxc5+ {[%clk 0:00:13]} 38. Kb4 {[%clk 0:00:04]}  Qf2 {[%clk 0:00:13]} 39. a4 {[%clk 0:00:03]}  Rb2+ {[%clk 0:00:13]} 40. Ka3 {[%clk 0:00:03]}  Ra2+ {[%clk 0:00:13]} 41. Kb4 {[%clk 0:00:04]}  Rxa4# {[%clk 0:00:14]} 0-1


[Site "https://www.chess.com"]

[Event "Titled Tuesday Blitz October 11 Early 2022"]
[White "Shimanov, Aleksandr"]
[Black "Munkhgal, Gombosuren"]
[WhiteFideId "4198603"]
[BlackFideId "4901266"]
[WhiteElo "2605"]
[BlackElo "2576"]
[Result "0-1"]
[Round "03"]
[TimeControl "180+1"]
[Date "2022.10.11"]
[WhiteClock "0:00:02"]
[BlackClock "0:00:45"]

1. c4 {[%clk 0:03:00]}  Nf6 {[%clk 0:02:59]} 2. Nf3 {[%clk 0:02:54]}  e6 {[%clk 0:03:00]} 3. d4 {[%clk 0:02:49]}  d5 {[%clk 0:03:00]} 4. Nc3 {[%clk 0:02:49]}  Bb4 {[%clk 0:02:59]} 5. Qa4+ {[%clk 0:02:44]}  Nc6 {[%clk 0:02:58]} 6. e3 {[%clk 0:02:44]}  O-O {[%clk 0:02:57]} 7. Bd2 {[%clk 0:02:44]}  dxc4 {[%clk 0:02:54]} 8. Bxc4 {[%clk 0:02:41]}  Bd6 {[%clk 0:02:54]} 9. Qc2 {[%clk 0:02:28]}  a6 {[%clk 0:02:54]} 10. a3 {[%clk 0:02:23]}  e5 {[%clk 0:02:54]} 11. dxe5 {[%clk 0:02:09]}  Nxe5 {[%clk 0:02:54]} 12. Be2 {[%clk 0:02:09]}  Bg4 {[%clk 0:02:51]} 13. h3 {[%clk 0:01:59]}  Bh5 {[%clk 0:02:50]} 14. Nxe5 {[%clk 0:01:53]}  Bxe5 {[%clk 0:02:42]} 15. Bxh5 {[%clk 0:01:52]}  Nxh5 {[%clk 0:02:42]} 16. O-O {[%clk 0:01:52]}  Nf6 {[%clk 0:02:40]} 17. Rad1 {[%clk 0:01:50]}  Qe7 {[%clk 0:02:36]} 18. Na4 {[%clk 0:01:47]}  Bd6 {[%clk 0:02:34]} 19. Nc3 {[%clk 0:01:27]}  Rad8 {[%clk 0:02:32]} 20. Bc1 {[%clk 0:01:26]}  Rfe8 {[%clk 0:02:33]} 21. Rd3 {[%clk 0:01:22]}  Qe5 {[%clk 0:02:33]} 22. f4 {[%clk 0:01:20]}  Qc5 {[%clk 0:02:32]} 23. Rf2 {[%clk 0:01:11]}  Re7 {[%clk 0:02:07]} 24. Kh1 {[%clk 0:00:44]}  Rde8 {[%clk 0:02:06]} 25. Qd1 {[%clk 0:00:44]}  h6 {[%clk 0:02:01]} 26. Rc2 {[%clk 0:00:41]}  Qf5 {[%clk 0:01:59]} 27. g4 {[%clk 0:00:36]}  Qg6 {[%clk 0:01:52]} 28. Kg2 {[%clk 0:00:32]}  Ne4 {[%clk 0:01:50]} 29. Nxe4 {[%clk 0:00:21]}  Rxe4 {[%clk 0:01:49]} 30. Rcc3 {[%clk 0:00:15]}  h5 {[%clk 0:01:34]} 31. Qf3 {[%clk 0:00:15]}  h4 {[%clk 0:01:34]} 32. Rd1 {[%clk 0:00:11]}  f5 {[%clk 0:01:30]} 33. Rf1 {[%clk 0:00:07]}  Qe6 {[%clk 0:01:25]} 34. Rf2 {[%clk 0:00:06]}  b5 {[%clk 0:01:22]} 35. b4 {[%clk 0:00:06]}  g6 {[%clk 0:01:17]} 36. Rfc2 {[%clk 0:00:05]}  Qd5 {[%clk 0:01:07]} 37. Rf2 {[%clk 0:00:04]}  R8e7 {[%clk 0:01:02]} 38. Rd2 {[%clk 0:00:04]}  Qb7 {[%clk 0:01:02]} 39. Rf2 {[%clk 0:00:05]}  Qa8 {[%clk 0:00:59]} 40. Kh2 {[%clk 0:00:04]}  Qf8 {[%clk 0:00:57]} 41. Rg2 {[%clk 0:00:03]}  Kh7 {[%clk 0:00:54]} 42. Rf2 {[%clk 0:00:03]}  Qg7 {[%clk 0:00:53]} 43. Kg2 {[%clk 0:00:04]}  Qxc3 {[%clk 0:00:53]} 44. gxf5 {[%clk 0:00:04]}  Qf6 {[%clk 0:00:51]} 45. fxg6+ {[%clk 0:00:03]}  Qxg6+ {[%clk 0:00:51]} 46. Kf1 {[%clk 0:00:03]}  Bxf4 {[%clk 0:00:48]} 47. Rg2 {[%clk 0:00:02]}  Bg5 {[%clk 0:00:47]} 48. Rg4 {[%clk 0:00:02]}  Rf7 {[%clk 0:00:45]} 0-1


[Site "https://www.chess.com"]

[Event "Titled Tuesday Blitz October 11 Early 2022"]
[White "Shipov, Sergei"]
[Black "Jobava, Baadur"]
[WhiteFideId "4113624"]
[BlackFideId "13601520"]
[WhiteElo "2776"]
[BlackElo "2582"]
[Result "0-1"]
[Round "03"]
[TimeControl "180+1"]
[Date "2022.10.11"]
[WhiteClock "0:00:28"]
[BlackClock "0:00:11"]

1. d4 {[%clk 0:02:59]}  Nf6 {[%clk 0:02:59]} 2. c4 {[%clk 0:03:00]}  c5 {[%clk 0:03:00]} 3. d5 {[%clk 0:03:00]}  g6 {[%clk 0:03:00]} 4. Nc3 {[%clk 0:02:59]}  d6 {[%clk 0:03:01]} 5. e4 {[%clk 0:03:00]}  Bg7 {[%clk 0:03:02]} 6. Bd3 {[%clk 0:02:59]}  O-O {[%clk 0:03:03]} 7. h3 {[%clk 0:03:00]}  e6 {[%clk 0:03:03]} 8. Bg5 {[%clk 0:03:00]}  h6 {[%clk 0:03:02]} 9. Be3 {[%clk 0:03:00]}  exd5 {[%clk 0:03:03]} 10. cxd5 {[%clk 0:02:59]}  Re8 {[%clk 0:03:02]} 11. Nf3 {[%clk 0:03:00]}  a6 {[%clk 0:03:01]} 12. a4 {[%clk 0:02:59]}  Nbd7 {[%clk 0:03:01]} 13. O-O {[%clk 0:02:59]}  Rb8 {[%clk 0:02:58]} 14. Qd2 {[%clk 0:02:59]}  Kh7 {[%clk 0:02:57]} 15. Rab1 {[%clk 0:02:57]}  b6 {[%clk 0:02:44]} 16. b4 {[%clk 0:02:56]}  cxb4 {[%clk 0:02:35]} 17. Rxb4 {[%clk 0:02:55]}  Nc5 {[%clk 0:02:35]} 18. Rfb1 {[%clk 0:02:55]}  Bd7 {[%clk 0:02:32]} 19. Bf4 {[%clk 0:02:43]}  Qc7 {[%clk 0:02:29]} 20. Bc2 {[%clk 0:02:42]}  Rec8 {[%clk 0:02:09]} 21. e5 {[%clk 0:02:38]}  Ne8 {[%clk 0:02:09]} 22. e6 {[%clk 0:02:33]}  Bxe6 {[%clk 0:02:05]} 23. Bxh6 {[%clk 0:01:06]}  Nb3 {[%clk 0:01:16]} 24. R4xb3 {[%clk 0:00:56]}  Bxc3 {[%clk 0:01:04]} 25. Qf4 {[%clk 0:00:56]}  Bxd5 {[%clk 0:01:01]} 26. Ng5+ {[%clk 0:00:48]}  Kg8 {[%clk 0:01:01]} 27. h4 {[%clk 0:00:48]}  Be5 {[%clk 0:00:58]} 28. Qd2 {[%clk 0:00:48]}  Qxc2 {[%clk 0:00:38]} 29. Qxd5 {[%clk 0:00:48]}  Qc1+ {[%clk 0:00:37]} 30. Qd1 {[%clk 0:00:47]}  Qxd1+ {[%clk 0:00:37]} 31. Rxd1 {[%clk 0:00:48]}  Rc4 {[%clk 0:00:38]} 32. Nf3 {[%clk 0:00:46]}  Rxa4 {[%clk 0:00:35]} 33. h5 {[%clk 0:00:44]}  gxh5 {[%clk 0:00:33]} 34. g3 {[%clk 0:00:44]}  Bf6 {[%clk 0:00:29]} 35. Rd5 {[%clk 0:00:42]}  b5 {[%clk 0:00:24]} 36. Rxh5 {[%clk 0:00:42]}  b4 {[%clk 0:00:20]} 37. Kg2 {[%clk 0:00:38]}  Rb5 {[%clk 0:00:18]} 38. Rxb5 {[%clk 0:00:35]}  axb5 {[%clk 0:00:19]} 39. Nd2 {[%clk 0:00:34]}  d5 {[%clk 0:00:17]} 40. Nf3 {[%clk 0:00:31]}  Bc3 {[%clk 0:00:15]} 41. Be3 {[%clk 0:00:28]}  Nd6 {[%clk 0:00:14]} 42. Bc5 {[%clk 0:00:28]}  Nc4 {[%clk 0:00:12]} 43. Nd4 {[%clk 0:00:28]}  Nd2 {[%clk 0:00:11]} 0-1


[Site "https://www.chess.com"]

[Event "Titled Tuesday Blitz October 11 Early 2022"]
[White "Siva Mahadevan"]
[Black "Nakamura, Hikaru"]
[WhiteFideId "25043153"]
[BlackFideId "2016192"]
[WhiteElo "2249"]
[BlackElo "2909"]
[Result "0-1"]
[Round "03"]
[TimeControl "180+1"]
[Date "2022.10.11"]
[WhiteClock "0:00:11"]
[BlackClock "0:00:17"]

1. e4 {[%clk 0:02:59]}  g6 {[%clk 0:02:51]} 2. d4 {[%clk 0:02:56]}  Bg7 {[%clk 0:02:52]} 3. Nc3 {[%clk 0:02:56]}  a6 {[%clk 0:02:51]} 4. Bg5 {[%clk 0:02:56]}  b5 {[%clk 0:02:51]} 5. f4 {[%clk 0:02:55]}  Bb7 {[%clk 0:02:49]} 6. Nf3 {[%clk 0:02:56]}  d6 {[%clk 0:02:50]} 7. Bd3 {[%clk 0:02:55]}  Nd7 {[%clk 0:02:41]} 8. O-O {[%clk 0:02:54]}  c5 {[%clk 0:02:40]} 9. e5 {[%clk 0:02:54]}  Qb6 {[%clk 0:02:34]} 10. Be4 {[%clk 0:02:10]}  cxd4 {[%clk 0:02:18]} 11. Nd5 {[%clk 0:02:02]}  Bxd5 {[%clk 0:02:09]} 12. Bxd5 {[%clk 0:02:02]}  Rc8 {[%clk 0:02:10]} 13. Kh1 {[%clk 0:01:11]}  e6 {[%clk 0:01:57]} 14. Bb3 {[%clk 0:01:10]}  dxe5 {[%clk 0:01:53]} 15. fxe5 {[%clk 0:01:10]}  Nh6 {[%clk 0:01:53]} 16. Nxd4 {[%clk 0:01:02]}  Nxe5 {[%clk 0:01:45]} 17. Be3 {[%clk 0:00:23]}  Qc7 {[%clk 0:00:48]} 18. Nxe6 {[%clk 0:00:22]}  fxe6 {[%clk 0:00:46]} 19. Bxe6 {[%clk 0:00:23]}  Rd8 {[%clk 0:00:40]} 20. Qe2 {[%clk 0:00:23]}  Nf5 {[%clk 0:00:27]} 21. Bxf5 {[%clk 0:00:21]}  gxf5 {[%clk 0:00:28]} 22. Rxf5 {[%clk 0:00:21]}  Rd7 {[%clk 0:00:20]} 23. Bf4 {[%clk 0:00:19]}  Re7 {[%clk 0:00:21]} 24. Re1 {[%clk 0:00:20]}  Qd7 {[%clk 0:00:19]} 25. Bxe5 {[%clk 0:00:11]}  Qxf5 {[%clk 0:00:17]} 0-1


[Site "https://www.chess.com"]

[Event "Titled Tuesday Blitz October 11 Early 2022"]
[White "Slaby, Jerzy"]
[Black "Podetti, Davide"]
[WhiteFideId "1121405"]
[BlackFideId "893617"]
[WhiteElo "2540"]
[BlackElo "2160"]
[Result "1-0"]
[Round "03"]
[TimeControl "180+1"]
[Date "2022.10.12"]
[WhiteClock "0:00:44"]
[BlackClock "0:00:20"]

1. e4 {[%clk 0:03:00]}  e5 {[%clk 0:03:00]} 2. Nf3 {[%clk 0:03:00]}  Nc6 {[%clk 0:03:00]} 3. Bb5 {[%clk 0:03:00]}  a6 {[%clk 0:03:01]} 4. Bxc6 {[%clk 0:02:59]}  dxc6 {[%clk 0:03:01]} 5. O-O {[%clk 0:02:59]}  f6 {[%clk 0:02:59]} 6. d4 {[%clk 0:02:59]}  exd4 {[%clk 0:03:00]} 7. Qxd4 {[%clk 0:02:59]}  Qxd4 {[%clk 0:03:00]} 8. Nxd4 {[%clk 0:03:00]}  Bd7 {[%clk 0:03:00]} 9. Nc3 {[%clk 0:02:59]}  O-O-O {[%clk 0:03:01]} 10. Bf4 {[%clk 0:02:59]}  Ne7 {[%clk 0:03:00]} 11. Rfd1 {[%clk 0:02:57]}  Ng6 {[%clk 0:03:00]} 12. Bg3 {[%clk 0:02:52]}  h5 {[%clk 0:02:59]} 13. h4 {[%clk 0:02:50]}  Bb4 {[%clk 0:02:50]} 14. f3 {[%clk 0:02:31]}  Rhe8 {[%clk 0:02:45]} 15. Rd2 {[%clk 0:02:21]}  Ne5 {[%clk 0:02:39]} 16. Bxe5 {[%clk 0:02:19]}  Rxe5 {[%clk 0:02:36]} 17. Rad1 {[%clk 0:02:17]}  Ree8 {[%clk 0:02:24]} 18. Kf1 {[%clk 0:01:54]}  Bd6 {[%clk 0:02:19]} 19. Nde2 {[%clk 0:01:52]}  Be6 {[%clk 0:02:15]} 20. b3 {[%clk 0:01:47]}  g5 {[%clk 0:01:53]} 21. hxg5 {[%clk 0:01:36]}  fxg5 {[%clk 0:01:54]} 22. Nd4 {[%clk 0:01:35]}  Bd7 {[%clk 0:01:51]} 23. Nf5 {[%clk 0:01:26]}  Bf4 {[%clk 0:01:31]} 24. Rd3 {[%clk 0:01:18]}  Be5 {[%clk 0:01:00]} 25. Ne2 {[%clk 0:01:16]}  Be6 {[%clk 0:00:50]} 26. Kf2 {[%clk 0:01:06]}  Rxd3 {[%clk 0:00:47]} 27. Rxd3 {[%clk 0:01:07]}  Rf8 {[%clk 0:00:47]} 28. Ned4 {[%clk 0:01:02]}  Bd7 {[%clk 0:00:43]} 29. Ne7+ {[%clk 0:00:53]}  Kb8 {[%clk 0:00:36]} 30. Ng6 {[%clk 0:00:51]}  Re8 {[%clk 0:00:32]} 31. Nxe5 {[%clk 0:00:51]}  Rxe5 {[%clk 0:00:31]} 32. Ke3 {[%clk 0:00:52]}  c5 {[%clk 0:00:29]} 33. Ne2 {[%clk 0:00:51]}  Bc6 {[%clk 0:00:29]} 34. c4 {[%clk 0:00:50]}  Kc8 {[%clk 0:00:29]} 35. Nc3 {[%clk 0:00:51]}  b5 {[%clk 0:00:28]} 36. g3 {[%clk 0:00:50]}  b4 {[%clk 0:00:26]} 37. Nd5 {[%clk 0:00:50]}  Bxd5 {[%clk 0:00:25]} 38. cxd5 {[%clk 0:00:45]}  Kd7 {[%clk 0:00:25]} 39. f4 {[%clk 0:00:45]}  Re8 {[%clk 0:00:24]} 40. e5 {[%clk 0:00:45]}  h4 {[%clk 0:00:24]} 41. Ke4 {[%clk 0:00:43]}  h3 {[%clk 0:00:22]} 42. fxg5 {[%clk 0:00:43]}  Rh8 {[%clk 0:00:18]} 43. Rd1 {[%clk 0:00:43]}  h2 {[%clk 0:00:18]} 44. Rh1 {[%clk 0:00:44]}  a5 {[%clk 0:00:19]} 45. Kf5 {[%clk 0:00:43]}  a4 {[%clk 0:00:19]} 46. g6 {[%clk 0:00:43]}  Ke7 {[%clk 0:00:19]} 47. g7 {[%clk 0:00:43]}  Rg8 {[%clk 0:00:20]} 48. Kg6 {[%clk 0:00:43]}  axb3 {[%clk 0:00:18]} 49. axb3 {[%clk 0:00:44]}  c4 {[%clk 0:00:19]} 50. bxc4 {[%clk 0:00:44]}  b3 {[%clk 0:00:20]} 51. Rxh2 {[%clk 0:00:44]}  b2 {[%clk 0:00:20]} 52. Rxb2 {[%clk 0:00:44]} 1-0


[Site "https://www.chess.com"]

[Event "Titled Tuesday Blitz October 11 Early 2022"]
[White "Soto Vega, Jorge"]
[Black "Grot, Blazej"]
[WhiteFideId "3800580"]
[BlackFideId "21835845"]
[WhiteElo "2263"]
[BlackElo "1739"]
[Result "1-0"]
[Round "03"]
[TimeControl "180+1"]
[Date "2022.10.12"]
[WhiteClock "0:00:42"]
[BlackClock "0:00:16"]

1. e4 {[%clk 0:03:00]}  c5 {[%clk 0:02:59]} 2. Nf3 {[%clk 0:02:59]}  e6 {[%clk 0:02:59]} 3. c4 {[%clk 0:02:59]}  Nc6 {[%clk 0:02:59]} 4. Nc3 {[%clk 0:02:58]}  e5 {[%clk 0:02:58]} 5. g3 {[%clk 0:02:56]}  d6 {[%clk 0:02:57]} 6. Bg2 {[%clk 0:02:57]}  g6 {[%clk 0:02:57]} 7. O-O {[%clk 0:02:56]}  Bg7 {[%clk 0:02:58]} 8. d3 {[%clk 0:02:56]}  Nge7 {[%clk 0:02:58]} 9. a3 {[%clk 0:02:56]}  Be6 {[%clk 0:02:58]} 10. Ng5 {[%clk 0:02:54]}  Bd7 {[%clk 0:02:56]} 11. f4 {[%clk 0:02:55]}  O-O {[%clk 0:02:53]} 12. Rb1 {[%clk 0:02:54]}  a5 {[%clk 0:02:50]} 13. Be3 {[%clk 0:02:52]}  Nd4 {[%clk 0:02:48]} 14. b4 {[%clk 0:02:49]}  axb4 {[%clk 0:02:44]} 15. axb4 {[%clk 0:02:49]}  b6 {[%clk 0:02:44]} 16. bxc5 {[%clk 0:02:45]}  bxc5 {[%clk 0:02:43]} 17. f5 {[%clk 0:02:33]}  gxf5 {[%clk 0:02:41]} 18. exf5 {[%clk 0:02:23]}  Nexf5 {[%clk 0:02:40]} 19. Bd2 {[%clk 0:02:19]}  Ra7 {[%clk 0:02:33]} 20. Qh5 {[%clk 0:02:13]}  h6 {[%clk 0:02:30]} 21. Nge4 {[%clk 0:02:12]}  Be6 {[%clk 0:02:25]} 22. Bh3 {[%clk 0:01:57]}  Qc8 {[%clk 0:01:50]} 23. g4 {[%clk 0:01:51]}  Ne7 {[%clk 0:01:39]} 24. Bxh6 {[%clk 0:01:49]}  Ng6 {[%clk 0:01:37]} 25. Nxd6 {[%clk 0:01:36]}  Qd7 {[%clk 0:01:30]} 26. Nf5 {[%clk 0:01:36]}  Bxf5 {[%clk 0:01:24]} 27. gxf5 {[%clk 0:01:35]}  Nxf5 {[%clk 0:01:16]} 28. Nd5 {[%clk 0:01:26]}  Nxh6 {[%clk 0:01:14]} 29. Bxd7 {[%clk 0:01:25]}  Rxd7 {[%clk 0:01:13]} 30. Qg5 {[%clk 0:01:11]}  Kh7 {[%clk 0:00:56]} 31. Kh1 {[%clk 0:00:59]}  Ra8 {[%clk 0:00:45]} 32. h4 {[%clk 0:00:57]}  Ra2 {[%clk 0:00:41]} 33. h5 {[%clk 0:00:57]}  Nf4 {[%clk 0:00:40]} 34. Rxf4 {[%clk 0:00:55]}  exf4 {[%clk 0:00:39]} 35. Rg1 {[%clk 0:00:55]}  f5 {[%clk 0:00:32]} 36. Qg6+ {[%clk 0:00:53]}  Kh8 {[%clk 0:00:19]} 37. Qe8+ {[%clk 0:00:51]}  Ng8 {[%clk 0:00:17]} 38. Qxd7 {[%clk 0:00:51]}  Bd4 {[%clk 0:00:17]} 39. Nxf4 {[%clk 0:00:42]}  Bxg1 {[%clk 0:00:16]} 40. Ng6# {[%clk 0:00:42]} 1-0


[Site "https://www.chess.com"]

[Event "Titled Tuesday Blitz October 11 Early 2022"]
[White "Sowul, Bartosz"]
[Black "Osiecki, Stanislaw"]
[WhiteFideId "1137590"]
[BlackFideId "1102990"]
[WhiteElo "2188"]
[BlackElo "2088"]
[Result "1-0"]
[Round "03"]
[TimeControl "180+1"]
[Date "2022.10.12"]
[WhiteClock "0:01:40"]
[BlackClock "0:01:45"]

1. e4 {[%clk 0:03:00]}  e6 {[%clk 0:02:59]} 2. d4 {[%clk 0:02:58]}  d5 {[%clk 0:02:59]} 3. Nc3 {[%clk 0:02:59]}  Bb4 {[%clk 0:02:58]} 4. exd5 {[%clk 0:02:58]}  exd5 {[%clk 0:02:58]} 5. Bd3 {[%clk 0:02:59]}  Nc6 {[%clk 0:02:57]} 6. Nf3 {[%clk 0:02:59]}  Bg4 {[%clk 0:02:56]} 7. O-O {[%clk 0:02:58]}  Nxd4 {[%clk 0:02:56]} 8. Qe1+ {[%clk 0:02:53]}  Ne6 {[%clk 0:02:54]} 9. Ne5 {[%clk 0:02:52]}  Bh5 {[%clk 0:02:43]} 10. f4 {[%clk 0:02:52]}  d4 {[%clk 0:02:41]} 11. f5 {[%clk 0:02:51]}  Nc5 {[%clk 0:02:29]} 12. Nc6+ {[%clk 0:02:46]}  Ne7 {[%clk 0:02:28]} 13. Nxd8 {[%clk 0:02:46]}  Rxd8 {[%clk 0:02:27]} 14. a3 {[%clk 0:02:29]}  dxc3 {[%clk 0:02:16]} 15. axb4 {[%clk 0:02:27]}  Nxd3 {[%clk 0:02:16]} 16. cxd3 {[%clk 0:02:27]}  Rxd3 {[%clk 0:02:16]} 17. bxc3 {[%clk 0:02:16]}  Rd1 {[%clk 0:02:03]} 18. Qh4 {[%clk 0:02:01]}  Rxf1+ {[%clk 0:02:01]} 19. Kxf1 {[%clk 0:02:01]}  g6 {[%clk 0:01:58]} 20. Rxa7 {[%clk 0:01:53]}  Nxf5 {[%clk 0:01:51]} 21. Qe4+ {[%clk 0:01:46]}  Kf8 {[%clk 0:01:49]} 22. g4 {[%clk 0:01:40]}  Nd6 {[%clk 0:01:45]} 23. Bh6+ {[%clk 0:01:40]} 1-0


[Site "https://www.chess.com"]